{"text_format":"1","workbook":"xlsx","n_sheets":2,"sheets":["MAIN","support"],"not_rendered":{"charts":0,"images":5,"macros":1,"external_links":0,"defined_names":1,"comments":0,"pivot_tables":0},"unopened":[],"bounds":{"document_bytes":16777216,"sheet_cells":100000,"rows_first":2000,"rows_last":500,"rows_between":2000,"halvings":0,"cell_chars":16384,"cell_head_chars":4096},"cells_cut":0,"cells_raw":0,"read":"whole","date_system":"1900"}

{"sheet":"MAIN","index":0,"n_rows":40,"n_cols":15,"rows_kept":40,"cut":false,"hidden":false,"merged":[[0,1,4,5],[6,1,7,12],[23,3,23,11],[30,3,30,11],[20,3,20,11],[15,3,15,11],[19,3,19,11],[11,3,11,11],[9,5,9,11],[21,14,24,21],[25,14,25,21],[8,14,8,21],[27,14,29,21],[17,14,18,21],[19,14,19,21],[20,14,20,21],[11,14,16,21],[31,5,31,11],[40,3,40,11],[32,1,33,12],[37,7,37,11],[39,7,39,11]]}
[null,"it-land.by"]
[null,null,null,null,null,null,null,null,"Создание сайтов"]
[null,null,null,null,null,null,null,null,"SEO продвижение сайтов"]
[null,null,null,null,null,null,null,null,"Контекстная реклама",null,null,null,null,null,"Версия: 1.03"]
[]
[null,null,"info@it-land.by",null,"мтс: +375(29)55-18-184",null,null,null,"viber, telegram, whapsapp: +375(29)200-58-18",null,null,null,null,null,"Автор: Александр Комякович"]
[null,"Генератор UTM меток"]
[null,null,null,null,null,null,null,null,null,null,null,null,null,null,"Тип лицензии: GNU GPL 2+"]
[null,null,null,null,null,null,null,null,null,null,null,null,null,null,"Контакты: info@it-land.by"]
[null,null,null,"Ваша метка","{lpurl}?utm_source=google&utm_medium=cpc&utm_campaign=exportlife2_search&utm_content=derevo_3&utm_term={keyword}",{"$f":"IF(support!H36<13,support!B30,support!B32)","v":"Введите данные ИСТОЧНИКА ТРАФИКА, ТИПА ТРАФИКА, НАЗВАНИЕ КОМПАНИИ"},"{lpurl}?utm_source=google&utm_medium=cpc&utm_campaign=mytt&utm_term={keyword}&utm_content=id|01000000{phrase_id}_{retargeting_id}|cid|{campaign_id}|gid|{gbid}|aid|{ad_id}|adp|{addphrases}|pos|{position_type}{position}|src|{source_type}_{source}|dvc|{device_type}","{lpurl}?utm_source=google&utm_medium=cpc&utm_campaign=mytt&utm_term={keyword}&utm_content=id|01000000{phrase_id}_{retargeting_id}|cid|{campaign_id}|gid|{gbid}|aid|{ad_id}|adp|{addphrases}|pos|{position_type}{position}|src|{source_type}_{source}|dvc|{device_type}","{lpurl}?utm_source=google&utm_medium=cpc&utm_campaign=mytt&utm_term={keyword}&utm_content=id|01000000{phrase_id}_{retargeting_id}|cid|{campaign_id}|gid|{gbid}|aid|{ad_id}|adp|{addphrases}|pos|{position_type}{position}|src|{source_type}_{source}|dvc|{device_type}",null,"{lpurl}?utm_source=google&utm_medium=cpc&utm_campaign=mytt&utm_term={keyword}&utm_content=id|01000000{phrase_id}_{retargeting_id}|cid|{campaign_id}|gid|{gbid}|aid|{ad_id}|adp|{addphrases}|pos|{position_type}{position}|src|{source_type}_{source}|dvc|{device_type}"]
[]
[null,null,null,"Выбирите свойства",null,null,null,null,null,null,null,null,null,null,"Вы можете использовать генератор в любых для вас целях: модифицировать его, изменять код, распространять, зарабатывать с помощью него, плакать над ним, рассказывать истории ему, путешествовать вместе, призваться в любви (не обязательно ему), искать косяки, писать автору пожелания для улучшений, писать автору с пожеланиями исправить его кривые руки с таким кривым кодом, благодарить автора и прочее.  Если вы обнаружили ошибки, пожалуйста, сообщите автору."]
[null,null,null,null,null,"обязательные",null,null,null,null,"необязательные"]
[null,null,null,"Источник трафика",null,"Тип трафика",null,"Название компании",null,"Дополнительная информация",null,"Ключевые слова"]
[null,null,null,"utm_source",null,"utm_medium",null,"utm_campaign",null,"utm_content",null,"utm_term"]
[null,null,null,"впишите свой вариант"]
[]
[null,null,null,null,null,null,null,null,null,null,null,null,"f",null,"Не забывайте делать ссылки "]
[]
[null,null,null,"или",null,null,null,null,null,null,null,null,null,null,"it-land.by?utm_source=site&utm_medium=referral&utm_campaign=generator"]
[null,null,null,"выбирите готовый вариант",null,null,null,null,null,null,null,null,null,null,"на первоисточник It-land.by, за это + 1 в карму. "]
[null,null,null,null,"",null,null,null,null,null,null,null,null,null,"Вместо благодарностей и 100 спасибо можно без стеснения донатить на яндекс.кошелек "]
[]
[]
[null,"Добавьте",null,"site",null,"referral",null,"generator",null,null,null,null,"f"]
[null,"ваши",null,null,null,null,null,null,null,null,null,null,"f",null,"https://money.yandex.ru/to/410014530009106"]
[null,"варианты"]
[null,"в",null,null,null,null,null,null,null,null,null,null,null,null,"Особенно, если этот генератор помогает вам зарабатывать деньги."]
[null,"выпадающие"]
[null,"списки"]
[]
[null,null,null,{"$f":"H38&F10","v":"it-land.byВведите данные ИСТОЧНИКА ТРАФИКА, ТИПА ТРАФИКА, НАЗВАНИЕ КОМПАНИИ"},null,{"$f":"IF(support!H36<13,support!B30,support!B32)","v":"Введите данные ИСТОЧНИКА ТРАФИКА, ТИПА ТРАФИКА, НАЗВАНИЕ КОМПАНИИ"},"{lpurl}?utm_source=google&utm_medium=cpc&utm_campaign={campaign_id}&utm_term={keyword}","{lpurl}?utm_source=google&utm_medium=cpc&utm_campaign={campaign_id}&utm_term={keyword}","{lpurl}?utm_source=google&utm_medium=cpc&utm_campaign={campaign_id}&utm_term={keyword}",null,"{lpurl}?utm_source=google&utm_medium=cpc&utm_campaign={campaign_id}&utm_term={keyword}"]
[null,"Генератор ссылок с UTM метками"]
[]
[]
[null,null,null,"1. Сгенерируйте вашу метку выше"]
[]
[null,null,null,"2. Напишите адрес вашего домена",null,null,null,"it-land.by"]
[]
[null,null,null,"3. Скопируйте ссылку",null,null,"it-land.by?utm_source=site&utm_medium=referral&utm_campaign=generator",{"$f":"H38&F10","v":"it-land.byВведите данные ИСТОЧНИКА ТРАФИКА, ТИПА ТРАФИКА, НАЗВАНИЕ КОМПАНИИ"}]

{"sheet":"support","index":1,"n_rows":46,"n_cols":10,"rows_kept":46,"cut":false,"hidden":false,"merged":[[0,0,4,4],[6,0,7,10],[8,1,8,9],[29,1,29,9],[39,2,39,8]]}
["it-land.by"]
[null,null,null,null,null,null,null,"Создание сайтов"]
[null,null,null,null,null,null,null,"SEO продвижение сайтов"]
[null,null,null,null,null,null,null,"Контекстная реклама"]
[]
[null,"info@it-land.by",null,"мтс: +375(29)55-18-184",null,null,null,"viber, telegram, whapsapp: +375(29)200-58-18"]
["Генератор UTM меток"]
[]
[null,"Формулы и расчет UTM-меток"]
[]
[null,"google",null,"cpc",null,{"$f":"IF(MAIN!D18=\"yandex\",support!C42,\"\")","v":""},null,"{keyword}",null,{"$f":"IF(MAIN!D18=\"yandex\",support!C45,\"\")","v":""}]
[null,"yandex",null,"smm",null,{"$f":"IF(MAIN!D18=\"google\",support!C43,\"\")","v":""},null,{"$f":"MAIN!J25","v":0},null,{"$f":"IF(MAIN!D18=\"google\",support!C46,\"\")","v":""}]
[null,"facebook",null,"content",null,{"$f":"MAIN!H25","v":"generator"},null,{"$f":"MAIN!J26","v":0},null,{"$f":"MAIN!L25","v":0}]
[null,"vk",null,"email",null,{"$f":"MAIN!H26","v":0},null,{"$f":"MAIN!J27","v":0},null,{"$f":"MAIN!L26","v":0}]
[null,"ok",null,"banner",null,{"$f":"MAIN!H27","v":0},null,{"$f":"MAIN!J28","v":0},null,{"$f":"MAIN!L27","v":0}]
[null,"insta",null,"social_cpc",null,{"$f":"MAIN!H28","v":0},null,{"$f":"MAIN!J29","v":0},null,{"$f":"MAIN!L28","v":0}]
[null,{"$f":"MAIN!D25","v":"site"},null,{"$f":"MAIN!F25","v":"referral"},null,{"$f":"MAIN!H29","v":0},null,{"$f":"MAIN!J30","v":0},null,{"$f":"MAIN!L29","v":0}]
[null,{"$f":"MAIN!D26","v":0},null,{"$f":"MAIN!F26","v":0},null,{"$f":"MAIN!H30","v":0},null,null,null,{"$f":"MAIN!L30","v":0}]
[null,{"$f":"MAIN!D27","v":0},null,{"$f":"MAIN!F27","v":0}]
[null,{"$f":"MAIN!D28","v":0},null,{"$f":"MAIN!F28","v":0}]
[null,{"$f":"MAIN!D29","v":0},null,{"$f":"MAIN!F29","v":0}]
[null,{"$f":"MAIN!D30","v":0},null,{"$f":"MAIN!F30","v":0}]
[null,null,null,null,null,null,null,{"$f":"ISBLANK(MAIN!J18)","v":true},null,{"$f":"ISBLANK(MAIN!L18)","v":true}]
[null,"utm_source=",null,"&utm_medium=",null,"&utm_campaign=",null,{"$f":"IF(H28>4,\"\",H26)","v":""},null,{"$f":"IF(J28>4,\"\",J26)","v":""}]
[]
[null,null,null,null,null,null,null,"&utm_term=",null,"&utm_content="]
[]
[null,null,null,null,null,null,null,{"$f":"LEN(H23)","v":6},null,{"$f":"LEN(J23)","v":6}]
[]
[null,{"$f":"B38&B24&MAIN!D18&D24&MAIN!F18&F24&MAIN!H18&J24&MAIN!J18&H24&MAIN!L18","v":"?utm_source=&utm_medium=&utm_campaign="}]
[]
[null,"Введите данные ИСТОЧНИКА ТРАФИКА, ТИПА ТРАФИКА, НАЗВАНИЕ КОМПАНИИ"]
[]
[null,{"$f":"ISBLANK(MAIN!D18)","v":true},null,{"$f":"ISBLANK(MAIN!F18)","v":true},null,{"$f":"ISBLANK(MAIN!H18)","v":true}]
[]
[null,{"$f":"LEN(B34)","v":6},null,{"$f":"LEN(D34)","v":6},null,{"$f":"LEN(F34)","v":6},null,{"$f":"SUM(B36:F36)","v":18}]
[]
[null,{"$f":"IF(MAIN!D18=\"google\",support!C38,support!D38)","v":"?"},"{lpurl}?","?"]
[]
[null,null,{"$f":"IF(support!H36<13,support!B30,support!B32)","v":"Введите данные ИСТОЧНИКА ТРАФИКА, ТИПА ТРАФИКА, НАЗВАНИЕ КОМПАНИИ"}]
[]
[null,null,"{campaign_id}"]
[null,null,"{campaignid}"]
[]
[null,null,"id|01000000{phrase_id}_{retargeting_id}|cid|{campaign_id}|gid|{gbid}|aid|{ad_id}|adp|{addphrases}|pos|{position_type}{position}|src|{source_type}_{source}|dvc|{device_type}"]
[null,null,"id|{targetid}|cid|{campaignid}|aid|{creative}|gid|{adgroupid}|pos|{adposition}|src|{network}_{placement}|dvc|{device}|reg|{loc_physical_ms}|rin|{loc_interest_ms}"]